[Event "Hungarian U20 Junior-ch Men 2024"]
[Site "Budapest"]
[Date "2024.03.16"]
[Round "6.5"]
[White "Kolimar, Kristof Pal"]
[Black "Bodrogi, Bendeguz"]
[Result "1-0"]
[ECO "D02"]
[WhiteElo "2282"]
[BlackElo "2316"]
[Annotator "TA"]
[PlyCount "99"]
[EventDate "2024.03.10"]
[EventCountry "HUN"]
[SourceTitle "playchess.com"]
[Source "ChessBase"]
[SourceQuality "1"]
[TimeControl "40/5400+30:1800+30"]

{[%evp 9,99,20,34,37,33,28,43,33,37,26,28,38,29,24,30,24,64,70,81,59,72,53,57,54,63,68,84,64,122,132,118,96,95,72,111,109,79,98,197,189,186,193,186,189,184,183,154,187,194,171,202,168,162,167,197,180,172,159,414,426,445,458,462,436,458,460,528,520,583,545,658,649,651,645,607,506,619,618,736,675,2486,2214,5306,5297,29986,29987,29987,29987,29987,29988,29988,29989]} 1. d4 {[%emt 0:00:39]} d5 {[%emt 0:01:16]} 2. Nf3 {[%emt 0:00:06]} e6 {[%emt 0:00:33]} 3. c4 {[%emt 0:00:06]} a6 {[%emt 0:00:11]} 4. Bg5 {[%emt 0:00:03]} Be7 {[%emt 0:00:26]} 5. Bxe7 {[%emt 0:00:09]} Nxe7 {[%emt 0:02:39]} 6. Nbd2 {[%emt 0:00:09]} O-O {[%emt 0:06:09]} 7. g3 {[%emt 0:00:37]} b6 {[%emt 0:02:35]} 8. Bg2 {[%emt 0:01:45] White is slightly better.} Bb7 {[%emt 0:01:03]} 9. cxd5 {[%emt 0:06:44]} Nxd5 {[%emt 0:05:30]} 10. O-O {[%emt 0:04:29]} Nd7 {[%emt 0:01:04]} 11. Rc1 {[%emt 0:06:05]} Rc8 {[%emt 0:08:02]} 12. Nc4 {[%emt 0:03:25]} N7f6 {[%emt 0:19:33]} 13. Nfe5 {[%emt 0:13:24]} Ba8 {[%emt 0:21:02]} 14. Qb3 {[%emt 0:06:47]} c5 {[%emt 0:05:14]} 15. dxc5 {[%emt 0:09:24]} (15. e4 $5 b5 16. exd5 bxc4 17. Qxc4 Bxd5 18. Bxd5 (18. Qxa6 Bxg2 19. Kxg2 Qxd4 $17) 18... exd5 19. Qxa6 $14) 15... Rxc5 {[%emt 0:01:29]} 16. Nd3 {[%emt 0:01:22]} Rc8 {[%emt 0:01:10]} 17. Qa3 {[%emt 0:03:57]} b5 {[%emt 0:05:07] [#]} 18. Nce5 {[%emt 0:02:06]} Rxc1 {[%emt 0:13:14]} (18... Qb6 $14) 19. Rxc1 $16 {[%emt 0:00:07]} Bb7 {[%emt 0:00:08]} 20. Qc5 {[%emt 0:09:18] White has more active pieces.} Qa8 {[%emt 0:01:18]} 21. Qd4 {[%emt 0:02:56]} Rc8 {[%emt 0:00:34]} 22. Rxc8+ {[%emt 0:03:36]} Qxc8 {[%emt 0:00:08]} 23. Nc5 {[%emt 0:00:51]} h6 {[%emt 0:02:18]} (23... Ba8 $16 {was worth a try.}) 24. e4 $18 {[%emt 0:08:21][%cal Oc5b7] Nxb7! is the strong threat.} Ne7 {[%emt 0:00:58][%cal Bd5e7,Be7g6,Bg6e5][%mdl 32]} 25. Nxb7 {[%emt 0:00:26]} Qxb7 {[%emt 0:00:02]} 26. Qd8+ {[%emt 0:00:08]} Kh7 {[%emt 0:00:02]} 27. Nxf7 {[%emt 0:00:22]} Ng6 {[%emt 0:00:50] [#] Against Qh8+} 28. e5 $1 $36 {[%emt 0:07:07][%mdl 2048] White is in control.} Qxf7 {[%emt 0:00:04]} 29. exf6 {[%emt 0:00:04]} gxf6 {[%emt 0:00:05][%mdl 4096] Endgame. KQB-KQN} 30. b4 {[%emt 0:00:38]} Ne5 {[%emt 0:00:41]} 31. Qd6 {[%emt 0:01:26]} Kg6 {[%emt 0:01:53]} 32. Be4+ {[%emt 0:03:59]} Kg7 {[%emt 0:00:02]} 33. Qxa6 {[%emt 0:00:17]} f5 $2 {[%emt 0:00:02] This move loses the game for Black.} (33... Qd7 $16 34. Qb6 Qd2) 34. Qxb5 {[%emt 0:00:23]} Kf6 {[%emt 0:00:09]} 35. Bg2 {[%emt 0:01:13]} Qa7 {[%emt 0:00:01]} 36. Qe2 {[%emt 0:00:40]} ({Weaker is} 36. a4 Ng4 37. Qc5 Qxa4 $18) 36... Qd4 {[%emt 0:00:33] Against Qb2} 37. b5 {[%emt 0:01:25]} Qa1+ {[%emt 0:00:10]} 38. Bf1 {[%emt 0:00:07]} Qd4 {[%emt 0:00:11]} 39. Qe3 {[%emt 0:02:22]} Qd5 {[%emt 0:00:26]} 40. Be2 {[%emt 0:00:00] Inhibits Nf3+.} Qxa2 {[%emt 0:00:00]} 41. Qxh6+ {[%emt 0:03:02]} Ke7 {[%emt 0:03:59]} 42. Qe3 {[%emt 0:00:51]} Nd7 {[%emt 0:04:35]} 43. h4 e5 {[%emt 0:02:16]} 44. h5 {[%emt 0:05:11]} Kd8 {[%emt 0:01:55]} 45. h6 {[%emt 0:02:08]} f4 {[%emt 0:00:18]} 46. Qe4 {[%emt 0:01:04] Intending h7 and mate.} fxg3 {[%emt 0:00:23]} 47. h7 {[%emt 0:01:17] White mates.} gxf2+ {[%emt 0:00:04]} 48. Kxf2 {[%emt 0:01:57]} Qf7+ {[%emt 0:00:05]} 49. Bf3 {[%emt 0:00:04]} Qf6 {[%emt 0:00:28] [#]} 50. h8=Q+ $1 {[%emt 0:00:06][%mdl 512] Weighted Error Value: White=0.09 (flawless) /Black=0.31.  Loses game:     	---       	Black=1      Mistake:       	---       	Black=2      Inaccurate:     	---       	Black=2      OK:         	White=18    	Black=15     Best:        	White=3     	Black=3      Strong:       	White=1     	---} 1-0

[Event "Hungarian U20 Junior-ch Men 2024"]
[Site "Budapest"]
[Date "2024.03.17"]
[Round "7.1"]
[White "Bodrogi, Bendeguz"]
[Black "Karacsonyi, Gellert"]
[Result "1-0"]
[ECO "D02"]
[WhiteElo "2316"]
[BlackElo "2386"]
[Annotator "TA"]
[PlyCount "119"]
[EventDate "2024.03.10"]
[EventType "tourn"]
[EventCountry "HUN"]
[SourceTitle "playchess.com"]
[Source "ChessBase"]
[SourceQuality "1"]
[TimeControl "40/5400+30:1800+30"]

{[%evp 12,119,16,9,29,17,16,19,17,12,19,10,8,16,23,19,62,56,58,44,90,81,77,16,10,12,29,18,63,63,63,60,58,54,42,53,56,33,37,38,118,132,127,95,97,83,87,0,6,4,48,45,52,27,83,0,101,67,57,15,164,180,160,8,8,19,15,20,20,12,14,16,58,58,58,58,229,55,55,59,57,68,125,67,66,66,69,62,84,90,152,148,245,241,5404,5414,5307,5247,5171,5171,5150,5150,5110,5110,4970,4954,4954,4947,4922,4915]} 1. d4 {[%emt 0:00:41]} d5 {[%emt 0:00:39]} 2. Nf3 {[%emt 0:00:37]} Nf6 {[%emt 0:00:11]} 3. g3 {[%emt 0:00:42]} e6 {[%emt 0:00:24]} 4. Bg2 {[%emt 0:00:13]} Be7 {[%emt 0:00:05]} 5. O-O {[%emt 0:00:12]} O-O {[%emt 0:00:03]} 6. c4 {[%emt 0:00:38]} c6 {[%emt 0:00:08]} 7. Nc3 {[%emt 0:01:21]} a5 {[%emt 0:00:07]} 8. Nd2 {[%emt 0:05:34]} b5 {[%emt 0:00:18]} 9. cxb5 {[%emt 0:15:53]} cxb5 {[%emt 0:00:06] Die Stellung ist ausgeglichen.} 10. Nxb5 {[%emt 0:00:20]} Qb6 {[%emt 0:00:06]} 11. a4 {[%emt 0:02:48]} Nc6 {[%emt 0:00:06][%cal Oc8a6]} 12. e4 {[%emt 0:13:35]} Ba6 {[%emt 0:06:47]} 13. exd5 $1 {[%emt 0:02:49]} exd5 {[%emt 0:01:07]} 14. Nb1 $1 {[%emt 0:02:38]} Na7 {[%emt 0:14:20]} 15. Re1 {[%emt 0:14:47]} Bb4 {[%emt 0:03:36]} (15... Bxb5 $14 16. Rxe7 (16. axb5 Bb4 $11) 16... Nc6) 16. N5c3 $16 {[%emt 0:00:12]} Nc6 {[%emt 0:02:13]} 17. Bg5 {[%emt 0:05:18]} (17. Be3 $16) 17... Qxd4 $11 {[%emt 0:10:36]} 18. Be3 {[%emt 0:07:48]} (18. Na3 {ist vielschichtiger.} Ng4 19. Qxd4 Nxd4 20. Bxd5 Rac8 21. Re4) 18... Qxd1 {[%emt 0:12:43]} 19. Rxd1 {[%emt 0:00:09]} Rad8 {[%emt 0:00:02][%cal Od5d4]} 20. Nxd5 {[%emt 0:10:38]} (20. Bxd5 Nxd5 21. Rxd5 Bc4 22. Rxd8 Rxd8 $11) 20... Nxd5 {[%emt 0:00:32]} 21. Rxd5 {[%emt 0:00:15]} Rxd5 {[%emt 0:05:39]} 22. Bxd5 {[%emt 0:00:13]} Ne5 {[%emt 0:00:03]} 23. Na3 {[%emt 0:03:07]} Rd8 {[%emt 0:15:03]} 24. Be4 {[%emt 0:00:42]} Ng4 {[%emt 0:00:37]} 25. Nc2 {[%emt 0:01:32]} Bd2 {[%emt 0:07:23]} ({Besser ist} 25... Nxe3 $14 26. Nxb4 (26. Nxe3 g6 $11) 26... axb4 27. fxe3 g6) 26. Bb6 $16 {[%emt 0:02:44]} Rb8 {[%emt 0:03:19]} 27. Rd1 {[%emt 0:01:14]} Rxb6 {[%emt 0:00:39]} 28. Rxd2 {[%emt 0:00:05][%cal Rd2d8]} g6 {[%emt 0:00:04] [#]} 29. Rd8+ {[%emt 0:01:37]} (29. Nd4 $1 $16) 29... Kg7 $11 {[%emt 0:00:02]} 30. Ra8 {[%emt 0:00:20]} f5 {[%emt 0:05:53]} 31. Ra7+ {[%emt 0:02:36]} Kh6 {[%emt 0:01:32]} 32. Bf3 {[%emt 0:02:12][%cal Ob2b4]} Ne5 {[%emt 0:05:19]} (32... Bc4 $11) 33. Bd5 {[%emt 0:00:11]} ({Vorzuziehen ist} 33. Bd1 $16) 33... Bd3 {[%emt 0:03:45]} (33... Rxb2 $11 34. Rxa6 Rxc2) 34. Ne3 {[%emt 0:00:59]} Rxb2 {[%emt 0:00:02]} 35. h3 {[%emt 0:02:08][%cal Oa7e7] Zielt auf Re7! ab.} Be4 {[%emt 0:01:27]} (35... Be2 $1 $11 {und Schwarz ist OK.}) 36. Bxe4 $18 {[%emt 0:00:29]} (36. Rxa5 Nf3+ (36... Rb1+ 37. Nf1 $11) 37. Kg2 Nd2+ 38. Kh2 (38. Bxe4 Nxe4 39. Nxf5+ gxf5 $11) 38... Nb3 39. Bxb3 Rxb3 $15) 36... fxe4 {[%emt 0:00:02]} 37. Rxa5 $2 {[%emt 0:00:43][%mdl 4096] Endspiel. KRN-KRN} (37. Kg2 $16) 37... Nf3+ $11 {[%emt 0:02:00]} 38. Kg2 {[%emt 0:00:02]} Ne1+ {[%emt 0:01:11]} 39. Kf1 {[%emt 0:00:03]} Nf3 {[%emt 0:00:05] ( -> ...Rb1+)} 40. h4 {[%emt 0:00:00]} Kg7 $1 {[%emt 0:00:00]} 41. Ra7+ {[%emt 0:06:25]} Kg8 {[%emt 0:03:20]} 42. Nd5 {[%emt 0:04:13] Nf6+ ist eine echte Drohung.} Rb1+ {[%emt 0:09:47]} 43. Kg2 {[%emt 0:00:14] Droht stark Nf6+.} Rg1+ {[%emt 0:00:04]} 44. Kh3 {[%emt 0:00:13] Schwarz muss nun Nf6+ beachten.} h5 $1 {[%emt 0:00:10]} 45. Nf6+ {[%emt 0:05:04]} Kf8 {[%emt 0:00:05]} 46. g4 $1 {[%emt 0:03:47]} ({Viel schwächer wäre} 46. Nxe4 Ne1 47. Ra8+ Kg7 48. Ra7+ Kf8 $11) 46... hxg4+ {[%emt 0:12:52]} 47. Nxg4 {[%emt 0:00:10]} g5 $1 {[%emt 0:00:04]} 48. hxg5 {[%emt 0:03:16]} Nxg5+ {[%emt 0:00:03]} 49. Kh4 {[%emt 0:00:09] Weiß steht aktiver.} Nf3+ {[%emt 0:04:32]} 50. Kh5 {[%emt 0:00:11]} Rh1+ {[%emt 0:00:02]} (50... Nd4 $142) 51. Kg6 $16 {[%emt 0:00:17]} Rg1 {[%emt 0:00:01]} (51... Ke8 $16 {war angesagt.} 52. Kf5 Re1) 52. Kf5 $18 {[%emt 0:01:52]} Nd4+ $2 {[%emt 0:05:04] [#]} (52... Rc1 53. Kxe4 Ng5+ 54. Kd4 Rg1) 53. Kf6 $1 {[%emt 0:00:14][%cal Ra7a8] Weiß steht klar auf Gewinn.} ({Minderwertig wäre} 53. Kxe4 Rxg4+ 54. f4 Nc6 $11) 53... Ke8 {[%emt 0:00:32]} 54. Ne5 {[%emt 0:00:07][%cal Ra7a8]} Kd8 {[%emt 0:00:36]} 55. Rd7+ {[%emt 0:00:05]} Kc8 {[%emt 0:00:03]} 56. Rxd4 {[%emt 0:00:08] jetzt Rc4+ und aus.} Rf1 {[%emt 0:00:01]} 57. Ng4 {[%emt 0:05:35]} e3 {[%emt 0:00:02]} 58. Nxe3 {[%emt 0:00:06]} Rxf2+ {[%emt 0:00:01]} 59. Ke5 {[%emt 0:00:07]} Kc7 {[%emt 0:00:06]} 60. Kd5 {[%emt 0:00:48] Gewichteter Fehlerwert: Weiß=0.17 (sehr präzise) /Schwarz=0.25 (präzise) .  Gewinn verpasst:   	Weiß=1     	---        Fehler:       	Weiß=4     	Schwarz=8     Ungenau:       	Weiß=3     	Schwarz=4     OK:         	Weiß=14    	Schwarz=11    Bester:       	Weiß=10    	Schwarz=6     Stark:        	Weiß=4     	Schwarz=3} 1-0

[Event "Hungarian U20 Junior-ch Men 2024"]
[Site "Budapest"]
[Date "2024.03.17"]
[Round "7.2"]
[White "Palczert, Matyas"]
[Black "Kolimar, Kristof Pal"]
[Result "1-0"]
[ECO "C02"]
[WhiteElo "2297"]
[BlackElo "2282"]
[Annotator "TA"]
[PlyCount "73"]
[EventDate "2024.03.10"]
[EventType "tourn"]
[EventCountry "HUN"]
[SourceTitle "playchess.com"]
[Source "ChessBase"]
[SourceQuality "1"]
[TimeControl "40/5400+30:1800+30"]

{[%evp 17,72,0,51,52,46,51,48,54,58,43,50,47,43,50,49,35,50,52,61,54,65,45,53,51,65,65,76,40,64,52,244,262,339,332,890,877,1765,1489,1889,1903,1581,1682,1566,1508,2583,2314,29990,29991,29992,29993,29994,29995,29995,29996,29996,29997,29999]} 1. e4 {[%emt 0:00:40]} e6 {[%emt 0:00:39]} 2. d4 {[%emt 0:00:07]} d5 {[%emt 0:00:03]} 3. e5 {[%emt 0:00:26]} c5 {[%emt 0:00:04]} 4. c3 {[%emt 0:00:09]} Nc6 {[%emt 0:00:03]} 5. Nf3 {[%emt 0:00:23]} Bd7 {[%emt 0:00:05]} 6. Be2 {[%emt 0:02:33]} Nge7 {[%emt 0:01:16]} 7. O-O {[%emt 0:02:12]} cxd4 {[%emt 0:07:00]} 8. cxd4 {[%emt 0:01:23]} Nf5 {[%emt 0:00:16]} 9. Nc3 {[%emt 0:07:15]} Be7 {[%emt 0:08:44]} (9... a6 $11) 10. Bd3 $14 {[%emt 0:05:21]} Nh4 {[%emt 0:15:11]} (10... Nfxd4 $6 11. Nxd4 Nxd4 12. Qg4 $16) 11. Nxh4 {[%emt 0:01:30]} Bxh4 {[%emt 0:00:05]} 12. Qg4 {[%emt 0:04:07] White is slightly better.} Kf8 {[%emt 0:02:33]} 13. Be3 {[%emt 0:04:05]} Be7 {[%emt 0:05:57]} 14. Rac1 {[%emt 0:10:21]} h5 {[%emt 0:04:27]} 15. Qf3 {[%emt 0:01:52]} Kg8 {[%emt 0:00:33]} 16. Ne2 {[%emt 0:05:13]} Nb4 {[%emt 0:01:43]} 17. Bb1 {[%emt 0:00:39]} Bb5 {[%emt 0:00:15]} 18. a3 {[%emt 0:01:13]} Nc6 {[%emt 0:00:51]} 19. Rfd1 {[%emt 0:05:15]} Bxe2 {[%emt 0:00:58]} 20. Qxe2 {[%emt 0:00:13]} Qb6 {[%emt 0:08:35]} 21. b4 {[%emt 0:03:57]} a6 {[%emt 0:02:00]} 22. Kh1 {[%emt 0:01:52] White is more active.} g6 {[%emt 0:01:18]} 23. Rg1 {[%emt 0:04:55] Hoping for g4.} Kg7 $2 {[%emt 0:01:41] [#] Black cannot hold the game after this.} (23... Nxd4 $2 24. Qd3 $18) (23... Qd8 $14) 24. g4 $1 $18 {[%emt 0:09:35]} hxg4 {[%emt 0:00:37] [#]} (24... Nxd4 25. Qd3 (25. gxh5 $2 Nxe2 26. Bxb6 Nxc1 $19) 25... Qd8 26. Bxd4 (26. Qxd4 a5 $18)) 25. Bxg6 $1 {[%emt 0:04:06]} ({Weaker is} 25. Qxg4 Rh4 26. Qf3 Rah8 $17 (26... Nxd4 27. Qd1 $16)) (25. Rxg4 Rh4 $11) 25... Qd8 $2 {[%emt 0:21:36] [#]} (25... fxg6 26. Qxg4 (26. Rxg4 $2 {too greedy.} Raf8 $19) 26... g5 27. Bxg5 Kf7) 26. Bh5 $1 {[%emt 0:04:37][%mdl 512] A strong pair of Bishops.} Rh7 {[%emt 0:01:13]} (26... Rxh5 27. Qxg4+) 27. Qxg4+ {[%emt 0:00:47]} Kh8 {[%emt 0:00:03] [#]} 28. Bh6 $1 {[%emt 0:02:19][%mdl 512]} Qg8 {[%emt 0:00:16] Inhibits Bg7+.} 29. Qf4 {[%emt 0:00:47]} Qe8 {[%emt 0:00:25]} 30. Rcd1 {[%emt 0:01:12][%cal Bc1d1,Bd1d3,Bd3g3][%mdl 32] White threatens Rd3 and mate.} Rc8 {[%emt 0:04:12]} 31. Rd3 {[%emt 0:01:01] Threatening mate with Rh3.} Nxe5 {[%emt 0:00:20]} 32. dxe5 {[%emt 0:01:16] White mates.} Rc4 {[%emt 0:00:05]} 33. Qg3 {[%emt 0:00:16]} Bh4 {[%emt 0:00:46]} 34. Bg7+ {[%emt 0:00:17]} Kg8 {[%emt 0:00:04]} 35. Bf6+ {[%emt 0:00:12]} Bxg3 {[%emt 0:00:14]} 36. Rdxg3+ {[%emt 0:00:07]} Kf8 {[%emt 0:00:03]} 37. Rg8# {[%emt 0:00:08] Weighted Error Value: White=0.03 (flawless) /Black=0.51.  Loses game:     	---       	Black=1      Mistake:       	---       	Black=1      Inaccurate:     	White=1     	Black=1      OK:         	White=8     	Black=7      Strong:       	White=2     	---} 1-0

[Event "Hungarian U20 Junior-ch Men 2024"]
[Site "Budapest"]
[Date "2024.03.17"]
[Round "7.3"]
[White "Tancsa, Tamas"]
[Black "Juhasz, Agoston"]
[Result "0-1"]
[ECO "B51"]
[WhiteElo "2273"]
[BlackElo "2406"]
[Annotator "TA"]
[PlyCount "78"]
[EventDate "2024.03.10"]
[EventType "tourn"]
[EventCountry "HUN"]
[SourceTitle "playchess.com"]
[Source "ChessBase"]
[SourceQuality "1"]
[TimeControl "40/5400+30:1800+30"]

{[%evp 9,78,11,19,17,10,12,18,0,26,21,15,17,19,0,0,-10,0,-12,0,0,0,-33,-39,-115,-75,-147,-127,-178,-175,-191,-135,-242,-243,-237,-198,-274,-210,-230,-198,-230,-218,-319,-312,-363,-300,-350,-301,-799,-529,-526,-533,-529,-528,-591,-592,-761,-670,-670,-673,-1106,-1088,-1276,-1373,-1347,-1318,-1546,-1556,-1520,-1412,-6135,-5488]} 1. e4 {[%emt 0:00:39]} c5 {[%emt 0:00:45]} 2. Nf3 {[%emt 0:00:14]} d6 {[%emt 0:00:06]} 3. Bb5+ {[%emt 0:00:32]} Nd7 {[%emt 0:00:19]} 4. O-O {[%emt 0:00:07]} a6 {[%emt 0:00:05]} 5. Bd3 {[%emt 0:00:22]} Ngf6 {[%emt 0:00:26]} 6. Re1 {[%emt 0:00:58]} e6 {[%emt 0:00:47]} 7. c3 {[%emt 0:00:19]} Be7 {[%emt 0:01:26]} 8. Bc2 {[%emt 0:01:32] The position is equal.} b5 {[%emt 0:00:57]} 9. a4 {[%emt 0:06:22]} Bb7 {[%emt 0:01:18]} 10. d4 {[%emt 0:02:32]} cxd4 {[%emt 0:05:59]} 11. Nxd4 {[%emt 0:24:55]} bxa4 {[%emt 0:05:32]} 12. f3 {[%emt 0:10:17]} O-O {[%emt 0:05:59]} 13. Rxa4 {[%emt 0:03:41]} Qc7 {[%emt 0:05:36]} 14. Qe2 {[%emt 0:04:30]} Rfe8 {[%emt 0:07:18]} 15. Nd2 {[%emt 0:06:44]} g6 {[%emt 0:03:40]} 16. f4 {[%emt 0:07:05] Black continues to play with concentration.} ({White should try} 16. Rc4 $15 Qb8 17. Ra4) 16... Nc5 {[%emt 0:10:40]} 17. Ra3 {[%emt 0:07:54]} (17. Ra1 $142) 17... e5 $17 {[%emt 0:02:43]} 18. N4f3 {[%emt 0:18:17]} (18. N4b3 $17) 18... exf4 $19 {[%emt 0:07:14]} 19. b4 {[%emt 0:02:22]} Ncd7 {[%emt 0:02:01]} ({Better is} 19... Ne6 $19 20. Kh1 a5) 20. Nb3 {[%emt 0:00:34]} (20. Qc4 $17 Bd8 21. Qxc7 Bxc7 22. h3) 20... Bf8 {[%emt 0:02:29]} 21. Bxf4 {[%emt 0:00:31]} Nxe4 {[%emt 0:03:03]} 22. Nbd4 {[%emt 0:00:30]} (22. Bxe4 {was necessary.} Rxe4 23. Qd2) 22... Ndf6 {[%emt 0:04:20]} 23. Qd3 {[%emt 0:00:30]} Nh5 {[%emt 0:04:29]} 24. Bc1 {[%emt 0:00:30]} d5 {[%emt 0:01:40]} 25. h3 {[%emt 0:00:31]} (25. Be3 $142) 25... Bd6 {[%emt 0:00:52]} 26. Ne2 {[%emt 0:00:12]} Re7 {[%emt 0:01:29][%cal Od5d4] aiming for ...d4!} 27. Bb3 {[%emt 0:00:32]} Rae8 {[%emt 0:02:20]} 28. Rd1 $2 {[%emt 0:00:43] [#]} (28. Ba4 Rd8 29. Bc2) 28... Bc5+ {[%emt 0:06:58] Black is clearly winning.} 29. Ned4 {[%emt 0:00:32]} Bb6 {[%emt 0:00:39]} 30. Ba4 {[%emt 0:00:32]} Rc8 {[%emt 0:00:45]} 31. Re1 {[%emt 0:00:28]} Qg3 {[%emt 0:04:00]} ({Weaker is} 31... Nxc3 32. Rxe7 Qxe7 33. Rxc3 $11) 32. Be3 {[%emt 0:00:28] Inhibits Qf2+.} Nf4 {[%emt 0:02:41] Prevents Ne2.} 33. Bxf4 {[%emt 0:00:19]} Qxf4 {[%emt 0:00:02]} 34. Rf1 {[%emt 0:00:44]} Ng3 {[%emt 0:00:55]} 35. Rd1 {[%emt 0:00:15]} Re3 {[%emt 0:01:34]} 36. Qd2 {[%emt 0:00:01]} Ne4 {[%emt 0:01:48][%csl LRc3,LRd2]} 37. Qc1 {[%emt 0:00:55]} Nxc3 {[%emt 0:00:53] ( -> ...Ne2+)} 38. Qd2 {[%emt 0:00:49]} Nxd1 {[%emt 0:00:53]} 39. Bxd1 {[%emt 0:00:13] [#]} Rxf3 $1 {[%emt 0:00:30] Weighted Error Value: White=0.94/Black=0.27 (precise) .  Mistake:       	White=7     	Black=1      Inaccurate:     	White=1     	Black=3      OK:         	White=7     	Black=14     Best:        	White=2     	Black=1} 0-1

[Event "Hungarian U20 Junior-ch Men 2024"]
[Site "Budapest"]
[Date "2024.03.17"]
[Round "7.4"]
[White "Pasti, Aron"]
[Black "Pasztor, Balazs"]
[Result "0-1"]
[ECO "B66"]
[WhiteElo "2373"]
[BlackElo "2406"]
[Annotator "TA"]
[PlyCount "56"]
[EventDate "2024.03.10"]
[EventType "tourn"]
[EventCountry "HUN"]
[SourceTitle "playchess.com"]
[Source "ChessBase"]
[SourceQuality "1"]
[TimeControl "40/5400+30:1800+30"]

{[%evp 19,56,8,22,-19,-16,-14,-13,-54,0,0,-9,-29,0,-35,-27,-32,-13,-19,0,0,0,0,0,-89,-99,-93,-86,-145,-152,-287,-281,-366,-366,-618,-573,-622,-622,-616,-597]} 1. e4 {[%emt 0:00:36]} c5 {[%emt 0:02:13]} 2. Nf3 {[%emt 0:00:36]} d6 {[%emt 0:00:07]} 3. d4 {[%emt 0:00:03]} cxd4 {[%emt 0:00:05]} 4. Nxd4 {[%emt 0:00:02]} Nf6 {[%emt 0:00:10]} 5. Nc3 {[%emt 0:00:08]} Nc6 {[%emt 0:00:06]} 6. Bg5 {[%emt 0:00:38]} e6 {[%emt 0:00:11]} 7. Qd2 {[%emt 0:06:57]} a6 {[%emt 0:00:13]} 8. O-O-O {[%emt 0:00:41]} Be7 {[%emt 0:00:29]} 9. f3 {[%emt 0:06:01]} Nxd4 {[%emt 0:01:44]} 10. Qxd4 {[%emt 0:00:07]} O-O {[%emt 0:01:28]} 11. Bc4 {[%emt 0:11:27]} b5 {[%emt 0:03:21]} 12. Bb3 {[%emt 0:00:05]} Bb7 {[%emt 0:05:43]} 13. h4 {[%emt 0:05:48] The position is equal.} (13. Kb1 $5) 13... Qc7 {[%emt 0:03:45]} 14. h5 {[%emt 0:02:38] Strongly threatening h6.} h6 {[%emt 0:04:45]} 15. Bh4 {[%emt 0:04:13]} Rac8 {[%emt 0:08:29]} (15... Rfb8 $5) 16. g4 {[%emt 0:09:27] [#]} d5 $1 {[%emt 0:04:37]} 17. exd5 {[%emt 0:18:20]} Nxd5 {[%emt 0:13:55]} 18. Bxd5 {[%emt 0:03:32]} Bc5 {[%emt 0:11:57]} 19. Qe4 {[%emt 0:11:23]} exd5 {[%emt 0:00:18]} 20. Nxd5 {[%emt 0:00:01]} Qc6 {[%emt 0:04:32]} 21. Nc3 {[%emt 0:12:48]} (21. Qf5 $11 {keeps the balance.}) 21... Rfe8 $17 {[%emt 0:03:51]} 22. Qxc6 {[%emt 0:00:02]} Bxc6 {[%emt 0:00:19] This pair of bishops is nice.} 23. Rhf1 {[%emt 0:00:26]} ({White should try} 23. Rd3) 23... b4 $1 $36 {[%emt 0:03:52][%mdl 2048] Black has strong initiative.} 24. Nd5 {[%emt 0:01:10] [#]} (24. Ne4 $17 Bxe4 25. fxe4 Rxe4 26. Rd7) 24... Re5 $1 $19 {[%emt 0:00:49]} 25. c4 {[%emt 0:02:13] [#]} Bxd5 $1 {[%emt 0:01:35]} 26. f4 $2 {[%emt 0:01:32]} ({Of course not} 26. Rxd5 Rxd5 27. cxd5 Bf2+ 28. Kd2 Bxh4 $19) (26. cxd5 Bf2+ 27. Kb1 Bxh4 28. d6) 26... Be3+ {[%emt 0:00:32] Black is clearly winning.} 27. Kb1 {[%emt 0:00:03][%cal Oc4d5]} Be4+ {[%emt 0:00:24]} 28. Ka1 {[%emt 0:00:01]} Ree8 {[%emt 0:00:42] Weighted Error Value: White=0.50/Black=0.07 (flawless) .  Mistake:       	White=4     	---        Inaccurate:     	White=3     	Black=2      OK:         	White=7     	Black=8      Best:        	White=1     	---        Strong:       	---       	Black=3} 0-1